fUST/lending_fUST_20250606
["ID","MTS","AMOUNT","RATE_DAILY","PERIOD"]
[364736166,1749222645128,-500.0,0.00019835,2]
[364736167,1749222645137,-151.0,0.00019835,2]
[364736168,1749222645146,-408.88734082,0.00019847,2]
[364736169,1749222645155,-500.0,0.00019863,2]
[364736170,1749222645164,-500.0,0.00019863,2]
[364736171,1749222645178,-500.0,0.00019863,2]
[364736172,1749222645187,-198.0,0.00019863,2]
[364736173,1749222645196,-500.0,0.0001989,2]
[364736174,1749222645205,-500.0,0.0001989,2]
[364736175,1749222645216,-500.0,0.0001989,2]
[364736176,1749222645226,-500.0,0.00019918,2]
[364736177,1749222645237,-500.0,0.00019918,2]
[364736178,1749222645247,-500.0,0.00019918,2]
[364736179,1749222645257,-500.0,0.00019945,2]
[364736180,1749222645266,-500.0,0.00019945,2]
[364736181,1749222645275,-500.0,0.00019945,2]
[364736182,1749222645285,-500.0,0.00019972,2]
[364736183,1749222645295,-500.0,0.00019972,2]
[364736184,1749222645304,-500.0,0.00019972,2]
[364736185,1749222645314,-500.0,0.0002,2]
[364736186,1749222645323,-500.0,0.0002,2]
[364736187,1749222645332,-151.0,0.0002,2]
[364736188,1749222645342,-370.48538673,0.0002,2]
[364736189,1749222645351,-440.0,0.0002,2]
[364736190,1749222645360,-440.0,0.0002,2]
[364736191,1749222645370,-440.0,0.0002,2]
[364736192,1749222645379,-516.29831389,0.0002,2]
[364736193,1749222645389,-440.0,0.0002,2]
[364736194,1749222645398,-440.0,0.0002,2]
[364736195,1749222645408,-440.0,0.0002,2]
[364736196,1749222645418,-440.0,0.0002,2]
[364736197,1749222645428,-440.0,0.0002,2]
[364736198,1749222645438,-440.0,0.0002,2]
[364736199,1749222645447,-706.6,0.0002,2]
[364736200,1749222645457,-360.0,0.0002,2]
[364736201,1749222645466,-488.49,0.0002,2]
[364736202,1749222645475,-440.0,0.0002,2]
[364736203,1749222645485,-340.0,0.0002,2]
[364736204,1749222645495,-440.0,0.0002,2]
[364736205,1749222645505,-440.0,0.0002,2]
[364736206,1749222645514,-440.0,0.0002,2]
[364736207,1749222645524,-440.0,0.0002,2]
[364736208,1749222645533,-607.16,0.0002,2]
[364736209,1749222645542,-440.0,0.0002,2]
[364736210,1749222645552,-440.0,0.0002,2]
[364736211,1749222645561,-340.0,0.0002,2]
[364736212,1749222645571,-606.17,0.0002,2]
[364736213,1749222645580,-374.31553763,0.0002,2]
[364736214,1749222645590,-496.76,0.0002,2]
[364736215,1749222645599,-440.0,0.0002,2]
[364736216,1749222645609,-366.06164387,0.0002,2]
[364736217,1749222645618,-540.18784682,0.0002,2]
[364736218,1749222645627,-440.0,0.0002,2]
[364736219,1749222645636,-1663.25,0.0002,2]
[364736220,1749222645646,-440.0,0.0002,2]
[364736221,1749222645656,-1652.77,0.0002,2]
[364736222,1749222645666,-4012.69,0.0002,2]
[364736223,1749222645675,-291.22,0.0002,2]
[364736224,1749222645686,-440.0,0.0002,2]
[364736225,1749222645695,-801.86,0.0002,2]
[364736226,1749222645705,-3581.25,0.0002,2]
[364736227,1749222645715,-1321.47,0.0002,2]
[364736228,1749222645725,-440.0,0.0002,2]
[364736229,1749222645736,-440.0,0.0002,2]
[364736230,1749222645746,-454.86,0.0002,2]
[364736231,1749222645755,-1376.47,0.0002,2]
[364736232,1749222645765,-953.58,0.0002,2]
[364736233,1749222645775,-440.0,0.0002,2]
[364736234,1749222645784,-440.0,0.0002,2]
[364736235,1749222645794,-440.0,0.0002,2]
[364736237,1749222645803,-632.87,0.0002,2]
[364736239,1749222645813,-1402.35,0.0002,2]
[364736240,1749222645823,-440.0,0.0002,2]
[364736241,1749222645832,-1199.74,0.0002,2]
[364736242,1749222645842,-440.0,0.0002,2]
[364736243,1749222645851,-440.0,0.0002,2]
[364736244,1749222645861,-440.0,0.0002,2]
[364736245,1749222645871,-440.0,0.0002,2]
[364736246,1749222645880,-440.0,0.0002,2]
[364736247,1749222645890,-440.0,0.0002,2]
[364736248,1749222645900,-440.0,0.0002,2]
[364736249,1749222645909,-440.0,0.0002,2]
[364736250,1749222645919,-440.0,0.0002,2]
[364736251,1749222645928,-440.0,0.0002,2]
[364736252,1749222645938,-440.0,0.0002,2]
[364736253,1749222645948,-631.26,0.0002,2]
[364736254,1749222645958,-919.24,0.0002,2]
[364736255,1749222645968,-440.0,0.0002,2]
[364736256,1749222645977,-440.0,0.0002,2]
[364736257,1749222645990,-440.0,0.0002,2]
[364736258,1749222646000,-2393.6,0.0002,2]
[364736259,1749222646011,-440.0,0.0002,2]
[364736260,1749222646020,-2937.68,0.0002,2]
[364736261,1749222646030,-440.0,0.0002,2]
[364736262,1749222646040,-2567.02,0.0002,2]
[364736263,1749222646050,-368.73,0.0002,2]
[364736264,1749222646061,-440.0,0.0002,2]
[364736265,1749222646072,-3822.67,0.0002,2]
[364736266,1749222646083,-440.0,0.0002,2]
[364736267,1749222646093,-3069.86,0.0002,2]
[364736268,1749222646104,-440.0,0.0002,2]
[364736269,1749222646114,-3071.25,0.0002,2]
[364736270,1749222646124,-440.0,0.0002,2]
[364736271,1749222646134,-440.0,0.0002,2]
[364736273,1749222646144,-681.38,0.0002,2]
[364736274,1749222646154,-440.0,0.0002,2]
[364736276,1749222646165,-500.0,0.00020027,2]
[364736278,1749222646179,-500.0,0.00020055,2]
[364736279,1749222646189,-500.0,0.00020082,2]
[364736280,1749222646199,-228.99856483,0.00020082,2]
[364736281,1749222646209,-178.253,0.00020141,2]
[364736282,1749222646220,-1866.28546658,0.00020173,2]
[364736283,1749222646236,-239.563787,0.00020187,2]
[364736285,1749222646246,-151.0,0.000202,3]
[364736287,1749222646256,-160.0,0.0002024,2]
[364736288,1749222646267,-842.5625,0.00020259,2]
[364736289,1749222646277,-160.0,0.00020259,2]
[364736290,1749222646287,-11849.89752062,0.00020259,2]
[364736291,1749222646296,-834.50537533,0.00020259,2]
[364736292,1749222646306,-160.0,0.00020259,2]
[364736293,1749222646316,-423.83542519,0.00020259,2]
[364736294,1749222646326,-229.52673067,0.00020259,2]
[364736295,1749222646336,-160.0,0.00020259,2]
[364736296,1749222646346,-160.0,0.00020266,2]
[364736297,1749222646356,-160.0,0.00020266,2]
[364736298,1749222646366,-160.0,0.00020266,2]
[364736299,1749222646376,-212.976918,0.00020266,2]
[364736300,1749222646386,-151.0,0.00020273,2]
[364736301,1749222646396,-440.0,0.00020273,2]
[364736302,1749222646406,-430.0,0.00020273,2]
[364736304,1749222646416,-440.0,0.00020273,2]
[364736305,1749222646425,-440.0,0.00020273,2]
[364736306,1749222646435,-440.0,0.00020273,2]
[364736307,1749222646445,-440.0,0.00020273,2]
[364736308,1749222646455,-440.0,0.00020273,2]
[364736309,1749222646465,-440.0,0.00020273,2]
[364736310,1749222646475,-706.6,0.00020273,2]
[364736311,1749222646488,-488.49,0.00020273,2]
[364736312,1749222646498,-440.0,0.00020273,2]
[364736313,1749222646508,-440.0,0.00020273,2]
[364736314,1749222646518,-360.0,0.00020273,2]
[364736315,1749222646528,-350.0,0.00020273,2]
[364736316,1749222646538,-607.16,0.00020273,2]
[364736317,1749222646548,-440.0,0.00020273,2]
[364736318,1749222646558,-334.12406173,0.00020273,2]
[364736319,1749222646567,-606.17,0.00020273,2]
[364736320,1749222646577,-496.76,0.00020273,2]
[364736321,1749222646587,-440.0,0.00020273,2]
[364736322,1749222646597,-493.72124398,0.00020273,2]
[364736323,1749222646607,-1663.25,0.00020273,2]
[364736324,1749222646617,-410.0,0.00020273,2]
[364736325,1749222646626,-1652.77,0.00020273,2]
[364736326,1749222646636,-4012.69,0.00020273,2]
[364736327,1749222646646,-440.0,0.00020273,2]
[364736328,1749222646656,-801.86,0.00020273,2]
[364736329,1749222646666,-3581.25,0.00020273,2]
[364736330,1749222646675,-1321.47,0.00020273,2]
[364736331,1749222646685,-440.0,0.00020273,2]
[364736332,1749222646694,-440.0,0.00020273,2]
[364736333,1749222646705,-454.86,0.00020273,2]
[364736334,1749222646715,-1376.47,0.00020273,2]
[364736335,1749222646726,-953.58,0.00020273,2]
[364736336,1749222646737,-440.0,0.00020273,2]
[364736337,1749222646747,-440.0,0.00020273,2]
[364736338,1749222646758,-440.0,0.00020273,2]
[364736339,1749222646767,-632.87,0.00020273,2]
[364736340,1749222646777,-1402.35,0.00020273,2]
[364736341,1749222646787,-440.0,0.00020273,2]
[364736342,1749222646796,-1199.74,0.00020273,2]
[364736343,1749222646806,-440.0,0.00020273,2]
[364736344,1749222646816,-440.0,0.00020273,2]
[364736345,1749222646826,-440.0,0.00020273,2]
[364736346,1749222646836,-440.0,0.00020273,2]
[364736347,1749222646846,-440.0,0.00020273,2]
[364736348,1749222646856,-440.0,0.00020273,2]
[364736349,1749222646866,-440.0,0.00020273,2]
[364736350,1749222646876,-440.0,0.00020273,2]
[364736351,1749222646886,-440.0,0.00020273,2]
[364736352,1749222646896,-440.0,0.00020273,2]
[364736353,1749222646905,-440.0,0.00020273,2]
[364736354,1749222646915,-631.26,0.00020273,2]
[364736355,1749222646925,-440.0,0.00020273,2]
[364736356,1749222646935,-919.24,0.00020273,2]
[364736357,1749222646945,-440.0,0.00020273,2]
[364736358,1749222646955,-440.0,0.00020273,2]
[364736359,1749222646965,-2393.6,0.00020273,2]
[364736360,1749222646974,-440.0,0.00020273,2]
[364736361,1749222646985,-2937.68,0.00020273,2]
[364736362,1749222646995,-440.0,0.00020273,2]
[364736363,1749222647005,-2567.02,0.00020273,2]
[364736364,1749222647015,-440.0,0.00020273,2]
[364736365,1749222647025,-3822.67,0.00020273,2]
[364736366,1749222647035,-440.0,0.00020273,2]
[364736367,1749222647044,-3069.86,0.00020273,2]
[364736368,1749222647054,-440.0,0.00020273,2]
[364736369,1749222647063,-3071.25,0.00020273,2]
[364736370,1749222647074,-440.0,0.00020273,2]
[364736371,1749222647084,-440.0,0.00020273,2]
[364736372,1749222647093,-681.38,0.00020273,2]
[364736373,1749222647103,-440.0,0.00020273,2]
[364736374,1749222647113,-500.0,0.00020363,2]
[364736375,1749222647122,-220.005756,0.00020544,2]
[364736376,1749222647132,-440.0,0.00020547,2]
[364736377,1749222647142,-440.0,0.00020547,2]
[364736378,1749222647152,-440.0,0.00020547,2]
[364736379,1749222647161,-440.0,0.00020547,2]
[364736380,1749222647173,-166.17,0.00020547,2]
[364736381,1749222647184,-706.6,0.00020547,2]
[364736382,1749222647194,-488.49,0.00020547,2]
[364736383,1749222647205,-440.0,0.00020547,2]
[364736384,1749222647216,-440.0,0.00020547,2]
[364736385,1749222647226,-607.16,0.00020547,2]
[364736386,1749222647238,-500.0,0.00020547,2]
[364736387,1749222647248,-440.0,0.00020547,2]
[364736388,1749222647260,-606.17,0.00020547,2]
[364736389,1749222647271,-496.76,0.00020547,2]
[364736390,1749222647281,-440.0,0.00020547,2]
[364736391,1749222647291,-1663.25,0.00020547,2]
[364736392,1749222647300,-1652.77,0.00020547,2]
[364736393,1749222647310,-4012.69,0.00020547,2]
[364736394,1749222647320,-440.0,0.00020547,2]
[364736395,1749222647329,-801.86,0.00020547,2]
[364736396,1749222647339,-3581.25,0.00020547,2]
[364736397,1749222647349,-1321.47,0.00020547,2]
[364736398,1749222647359,-440.0,0.00020547,2]
[364736399,1749222647368,-440.0,0.00020547,2]
[364736400,1749222647377,-454.86,0.00020547,2]
[364736401,1749222647387,-1376.47,0.00020547,2]
[364736402,1749222647396,-953.58,0.00020547,2]
[364736403,1749222647405,-440.0,0.00020547,2]
[364736404,1749222647415,-440.0,0.00020547,2]
[364736405,1749222647424,-440.0,0.00020547,2]
[364736406,1749222647433,-632.87,0.00020547,2]
[364736407,1749222647443,-1402.35,0.00020547,2]
[364736408,1749222647452,-160.0,0.00020547,2]
[364736409,1749222647461,-440.0,0.00020547,2]
[364736410,1749222647470,-1199.74,0.00020547,2]
[364736411,1749222647480,-440.0,0.00020547,2]
[364736412,1749222647490,-440.0,0.00020547,2]
[364736413,1749222647499,-440.0,0.00020547,2]
[364736414,1749222647509,-440.0,0.00020547,2]
[364736415,1749222647518,-440.0,0.00020547,2]
[364736416,1749222647528,-440.0,0.00020547,2]
[364736417,1749222647537,-440.0,0.00020547,2]
[364736418,1749222647547,-440.0,0.00020547,2]
[364736419,1749222647556,-440.0,0.00020547,2]
[364736420,1749222647565,-440.0,0.00020547,2]
[364736421,1749222647575,-440.0,0.00020547,2]
[364736422,1749222647586,-631.26,0.00020547,2]
[364736423,1749222647595,-440.0,0.00020547,2]
[364736424,1749222647605,-440.0,0.00020547,2]
[364736425,1749222647614,-919.24,0.00020547,2]
[364736426,1749222647624,-440.0,0.00020547,2]
[364736427,1749222647633,-2393.6,0.00020547,2]
[364736428,1749222647643,-440.0,0.00020547,2]
[364736429,1749222647652,-2937.68,0.00020547,2]
[364736430,1749222647662,-440.0,0.00020547,2]
[364736431,1749222647672,-2567.02,0.00020547,2]
[364736432,1749222647681,-440.0,0.00020547,2]
[364736433,1749222647691,-3822.67,0.00020547,2]
[364736434,1749222647701,-3069.86,0.00020547,2]
[364736435,1749222647711,-440.0,0.00020547,2]
[364736436,1749222647720,-3071.25,0.00020547,2]
[364736437,1749222647731,-440.0,0.00020547,2]
[364736438,1749222647740,-440.0,0.00020547,2]
[364736439,1749222647750,-681.38,0.00020547,2]
[364736440,1749222647760,-223.09467385,0.00020547,2]
[364736441,1749222647769,-773.01,0.000206,2]
[364736442,1749222647780,-32143.75,0.000206,2]
[364736443,1749222647790,-1452.29,0.000206,2]
[364736444,1749222647800,-408.88734082,0.00020616,2]
[364736445,1749222647810,-800.0,0.00020762,2]
[364736446,1749222647820,-236.36839721,0.00020784,2]
[364736447,1749222647830,-445.97687301,0.00020821,2]
[364736448,1749222647840,-440.0,0.00020821,2]
[364736449,1749222647850,-440.0,0.00020821,2]
[364736450,1749222647860,-706.6,0.00020821,2]
[364736451,1749222647978,-488.49,0.00020821,2]
[364736452,1749222647990,-440.0,0.00020821,2]
[364736453,1749222648000,-440.0,0.00020821,2]
[364736454,1749222648010,-607.16,0.00020821,2]
[364736455,1749222648020,-440.0,0.00020821,2]
[364736456,1749222648031,-606.17,0.00020821,2]
[364736457,1749222648042,-496.76,0.00020821,2]
[364736458,1749222648052,-440.0,0.00020821,2]
[364736459,1749222648062,-1663.25,0.00020821,2]
[364736460,1749222648072,-1652.77,0.00020821,2]
[364736461,1749222648082,-4012.69,0.00020821,2]
[364736462,1749222648092,-440.0,0.00020821,2]
[364736463,1749222648101,-801.86,0.00020821,2]
[364736464,1749222648111,-3581.25,0.00020821,2]
[364736465,1749222648120,-1321.47,0.00020821,2]
[364736466,1749222648130,-440.0,0.00020821,2]
[364736467,1749222648140,-440.0,0.00020821,2]
[364736468,1749222648149,-454.86,0.00020821,2]
[364736469,1749222648158,-1376.47,0.00020821,2]
[364736470,1749222648168,-953.58,0.00020821,2]
[364736471,1749222648183,-576.18812099,0.00020821,2]
[364736472,1749222648193,-440.0,0.00020821,2]
[364736473,1749222648202,-440.0,0.00020821,2]
[364736474,1749222648213,-632.87,0.00020821,2]
[364736475,1749222648223,-1402.35,0.00020821,2]
[364736476,1749222648233,-440.0,0.00020821,2]
[364736477,1749222648243,-1199.74,0.00020821,2]
[364736478,1749222648253,-440.0,0.00020821,2]
[364736479,1749222648262,-440.0,0.00020821,2]
[364736480,1749222648273,-440.0,0.00020821,2]
[364736481,1749222648282,-440.0,0.00020821,2]
[364736482,1749222648292,-440.0,0.00020821,2]
[364736483,1749222648304,-440.0,0.00020821,2]
[364736484,1749222648313,-440.0,0.00020821,2]
[364736485,1749222648323,-440.0,0.00020821,2]
[364736486,1749222648333,-440.0,0.00020821,2]
[364736487,1749222648343,-440.0,0.00020821,2]
[364736488,1749222648353,-440.0,0.00020821,2]
[364736489,1749222648362,-631.26,0.00020821,2]
[364736490,1749222648372,-440.0,0.00020821,2]
[364736491,1749222648382,-440.0,0.00020821,2]
[364736492,1749222648391,-919.24,0.00020821,2]
[364736493,1749222648401,-440.0,0.00020821,2]
[364736494,1749222648411,-2393.6,0.00020821,2]
[364736495,1749222648420,-440.0,0.00020821,2]
[364736496,1749222648431,-2937.68,0.00020821,2]
[364736497,1749222648440,-187.26439332,0.00020821,2]
[364736498,1749222648450,-2567.02,0.00020821,2]
[364736499,1749222648459,-440.0,0.00020821,2]
[364736500,1749222648469,-3822.67,0.00020821,2]
[364736501,1749222648478,-3069.86,0.00020821,2]
[364736502,1749222648489,-440.0,0.00020821,2]
[364736503,1749222648499,-3071.25,0.00020821,2]
[364736504,1749222648509,-440.0,0.00020821,2]
[364736505,1749222648519,-440.0,0.00020821,2]
[364736506,1749222648529,-681.38,0.00020821,2]
[364736507,1749222648538,-420.0,0.00020899,2]
[364736508,1749222648548,-420.0,0.00020899,2]
[364736509,1749222648557,-420.0,0.00020899,2]
[364736510,1749222648567,-3529.22219808,0.000209,4]
[364736511,1749222648576,-1151.0,0.00021,2]
[364736512,1749222648586,-3529.22219779,0.00021038,4]
[364736513,1749222648595,-1866.28546657,0.0002105,2]
[364736514,1749222648605,-420.0,0.00021095,2]
[364736515,1749222648615,-440.0,0.00021095,2]
[364736516,1749222648625,-706.6,0.00021095,2]
[364736517,1749222648635,-488.49,0.00021095,2]
[364736518,1749222648645,-440.0,0.00021095,2]
[364736519,1749222648655,-440.0,0.00021095,2]
[364736520,1749222648665,-607.16,0.00021095,2]
[364736521,1749222648675,-500.0,0.00021095,3]
[364736522,1749222648685,-440.0,0.00021095,2]
[364736523,1749222648694,-606.17,0.00021095,2]
[364736524,1749222648704,-496.76,0.00021095,2]
[364736525,1749222648714,-320.0,0.00021095,2]
[364736526,1749222648724,-1663.25,0.00021095,2]
[364736527,1749222648737,-1652.77,0.00021095,2]
[364736528,1749222648746,-4012.69,0.00021095,2]
[364736529,1749222648756,-440.0,0.00021095,2]
[364736530,1749222648766,-801.86,0.00021095,2]
[364736531,1749222648776,-3581.25,0.00021095,2]
[364736532,1749222648787,-1321.47,0.00021095,2]
[364736533,1749222648797,-508.14953021,0.00021095,2]
[364736534,1749222648806,-440.0,0.00021095,2]
[364736535,1749222648817,-454.86,0.00021095,2]
[364736536,1749222648827,-1376.47,0.00021095,2]
[364736537,1749222648838,-953.58,0.00021095,2]
[364736538,1749222648847,-440.0,0.00021095,2]
[364736539,1749222648857,-440.0,0.00021095,2]
[364736540,1749222648867,-632.87,0.00021095,2]
[364736541,1749222648876,-1402.35,0.00021095,2]
[364736542,1749222648886,-270.0,0.00021095,2]
[364736543,1749222648895,-1199.74,0.00021095,2]
[364736544,1749222648905,-350.0,0.00021095,2]
[364736545,1749222648914,-440.0,0.00021095,2]
[364736546,1749222648924,-440.0,0.00021095,2]
[364736547,1749222648934,-440.0,0.00021095,2]
[364736548,1749222648943,-380.0,0.00021095,2]
[364736549,1749222648952,-440.0,0.00021095,2]
[364736550,1749222648962,-440.0,0.00021095,2]
[364736551,1749222648971,-440.0,0.00021095,2]
[364736552,1749222648981,-440.0,0.00021095,2]
[364736553,1749222648994,-440.0,0.00021095,2]
[364736554,1749222649004,-440.0,0.00021095,2]
[364736555,1749222649013,-631.26,0.00021095,2]
[364736556,1749222649023,-440.0,0.00021095,2]
[364736557,1749222649033,-214.14,0.00021095,2]
[364736558,1749222649043,-919.24,0.00021095,2]
[364736559,1749222649053,-440.0,0.00021095,2]
[364736560,1749222649063,-2393.6,0.00021095,2]
[364736561,1749222649072,-440.0,0.00021095,2]
[364736562,1749222649082,-2937.68,0.00021095,2]
[364736563,1749222649092,-2567.02,0.00021095,2]
[364736564,1749222649102,-440.0,0.00021095,2]
[364736565,1749222649111,-3822.67,0.00021095,2]
[364736566,1749222649120,-3069.86,0.00021095,2]
[364736567,1749222649130,-440.0,0.00021095,2]
[364736568,1749222649139,-3071.25,0.00021095,2]
[364736569,1749222649149,-440.0,0.00021095,2]
[364736570,1749222649158,-440.0,0.00021095,2]
[364736571,1749222649168,-681.38,0.00021095,2]
[364736572,1749222649181,-3529.22219779,0.00021176,4]
[364736573,1749222649190,-151.0,0.00021252,2]
[364736574,1749222649200,-1688.0,0.00021252,2]
[364736575,1749222649211,-500.0,0.00021252,2]
[364736576,1749222649220,-500.0,0.00021252,2]
[364736577,1749222649229,-500.0,0.00021252,2]
[364736578,1749222649241,-632.79567003,0.00021252,2]
[364736579,1749222649251,-5000.0,0.00021252,2]
[364736580,1749222649260,-500.0,0.00021252,2]
[364736581,1749222649270,-500.0,0.00021252,2]
[364736582,1749222649280,-500.0,0.00021252,2]
[364736583,1749222649289,-500.0,0.00021252,2]
[364736584,1749222649299,-2553.74923471,0.00021252,2]
[364736585,1749222649308,-500.0,0.00021252,2]
[364736586,1749222649317,-500.0,0.00021252,2]
[364736587,1749222649327,-500.0,0.00021252,2]
[364736588,1749222649336,-500.0,0.00021252,2]
[364736589,1749222649346,-500.0,0.00021252,2]
[364736590,1749222649355,-500.0,0.00021252,2]
[364736591,1749222649366,-500.0,0.00021252,2]
[364736592,1749222649375,-500.0,0.00021252,2]
[364736593,1749222649384,-500.0,0.00021252,2]
[364736594,1749222649394,-207.4,0.00021252,2]
[364736595,1749222649403,-500.0,0.00021252,2]
[364736596,1749222649413,-500.0,0.00021252,2]
[364736597,1749222649422,-151.0,0.000213,4]
[364736598,1749222649431,-1750.456,0.00021307,2]
[364736599,1749222649441,-3529.22219779,0.00021314,5]
[364736600,1749222649450,-1815.222872,0.00021362,2]
[364736601,1749222649459,-440.0,0.00021369,2]
[364736602,1749222649469,-706.6,0.00021369,2]
[364736603,1749222649478,-488.49,0.00021369,2]
[364736604,1749222649490,-440.0,0.00021369,2]
[364736605,1749222649500,-440.0,0.00021369,2]
[364736606,1749222649509,-607.16,0.00021369,2]
[364736607,1749222649519,-240.67653284,0.00021369,2]
[364736608,1749222649528,-606.17,0.00021369,2]
[364736609,1749222649538,-496.76,0.00021369,2]
[364736610,1749222649547,-1663.25,0.00021369,2]
[364736611,1749222649557,-1652.77,0.00021369,2]
[364736612,1749222649566,-4012.69,0.00021369,2]
[364736613,1749222649576,-440.0,0.00021369,2]
[364736614,1749222649585,-801.86,0.00021369,2]
[364736615,1749222649595,-3581.25,0.00021369,2]
[364736616,1749222649605,-1321.47,0.00021369,2]
[364736617,1749222649614,-440.0,0.00021369,2]
[364736618,1749222649623,-454.86,0.00021369,2]
[364736619,1749222649633,-1376.47,0.00021369,2]
[364736620,1749222649642,-953.58,0.00021369,2]
[364736621,1749222649651,-440.0,0.00021369,2]
[364736622,1749222649661,-250.0,0.00021369,2]
[364736623,1749222649670,-632.87,0.00021369,2]
[364736624,1749222649679,-1402.35,0.00021369,2]
[364736625,1749222649688,-1199.74,0.00021369,2]
[364736626,1749222649697,-369.71149676,0.00021369,2]
[364736627,1749222649706,-440.0,0.00021369,2]
[364736628,1749222649716,-440.0,0.00021369,2]
[364736629,1749222649726,-440.0,0.00021369,2]
[364736630,1749222649735,-440.0,0.00021369,2]
[364736631,1749222649745,-426.58,0.00021369,2]
[364736632,1749222649754,-440.0,0.00021369,2]
[364736633,1749222649764,-440.0,0.00021369,2]
[364736634,1749222649774,-440.0,0.00021369,2]
[364736635,1749222649783,-631.26,0.00021369,2]
[364736636,1749222649793,-440.0,0.00021369,2]
[364736637,1749222649802,-919.24,0.00021369,2]
[364736638,1749222649811,-440.0,0.00021369,2]
[364736639,1749222649821,-2393.6,0.00021369,2]
[364736640,1749222649830,-440.0,0.00021369,2]
[364736641,1749222649840,-2937.68,0.00021369,2]
[364736642,1749222649849,-2567.02,0.00021369,2]
[364736643,1749222649859,-440.0,0.00021369,2]
[364736644,1749222649868,-3822.67,0.00021369,2]
[364736645,1749222649878,-3069.86,0.00021369,2]
[364736646,1749222649888,-440.0,0.00021369,2]
[364736647,1749222649897,-3071.25,0.00021369,2]
[364736648,1749222649907,-440.0,0.00021369,2]
[364736649,1749222649916,-681.38,0.00021369,2]
[364736650,1749222649926,-408.88734082,0.00021385,2]
[364736651,1749222649936,-191.92440929,0.00021417,2]
[364736652,1749222649946,-3529.22219779,0.00021452,5]
[364736653,1749222649956,-3529.22219779,0.0002159,5]
[364736654,1749222649965,-298821.90048,0.00021642,2]
[364736655,1749222649974,-440.0,0.00021643,2]
[364736656,1749222649985,-706.6,0.00021643,2]
[364736657,1749222649995,-488.49,0.00021643,2]
[364736658,1749222650004,-440.0,0.00021643,2]
[364736659,1749222650015,-440.0,0.00021643,2]
[364736660,1749222650025,-607.16,0.00021643,2]
[364736661,1749222650036,-500.0,0.00021643,4]
[364736662,1749222650048,-606.17,0.00021643,2]
[364736663,1749222650059,-496.76,0.00021643,2]
[364736664,1749222650070,-1663.25,0.00021643,2]
[364736665,1749222650079,-1652.77,0.00021643,2]
[364736666,1749222650090,-4012.69,0.00021643,2]
[364736667,1749222650100,-162.65926851,0.00021643,2]
[364736668,1749222650110,-801.86,0.00021643,2]
[364736669,1749222650119,-3581.25,0.00021643,2]
[364736670,1749222650128,-1321.47,0.00021643,2]
[364736671,1749222650137,-440.0,0.00021643,2]
[364736672,1749222650148,-454.86,0.00021643,2]
[364736673,1749222650158,-1376.47,0.00021643,2]